fUST/lending_fUST_20240218
["ID","MTS","AMOUNT","RATE_DAILY","PERIOD"]
[314387429,1708255834980,-500.0,0.00027397,2]
[314387430,1708255834989,-500.0,0.00027397,2]
[314387431,1708255834998,-500.0,0.00027397,2]
[314387432,1708255835007,-500.0,0.00027397,2]
[314387433,1708255835017,-300.0,0.00027397,2]
[314387434,1708255835026,-500.0,0.00027397,2]
[314387435,1708255835036,-514.834404,0.00027397,2]
[314387436,1708255835045,-594.83820886,0.00027397,2]
[314387437,1708255835055,-500.0,0.00027397,2]
[314387438,1708255835065,-500.0,0.00027397,2]
[314387439,1708255835075,-500.0,0.00027397,2]
[314387440,1708255835085,-500.0,0.00027397,2]
[314387441,1708255835095,-500.0,0.00027397,2]
[314387442,1708255835105,-583.68019355,0.00027397,2]
[314387443,1708255835114,-500.0,0.00027397,2]
[314387444,1708255835123,-500.0,0.00027397,2]
[314387445,1708255835133,-500.0,0.00027397,2]
[314387446,1708255835143,-500.0,0.00027397,2]
[314387447,1708255835153,-500.0,0.00027397,2]
[314387448,1708255835162,-500.0,0.00027397,2]
[314387449,1708255835172,-500.0,0.00027397,2]
[314387450,1708255835182,-500.0,0.00027397,2]
[314387451,1708255835192,-151.0,0.00027397,2]
[314387452,1708255835201,-500.0,0.00027397,2]
[314387453,1708255835210,-500.0,0.00027397,2]
[314387454,1708255835220,-500.0,0.00027397,2]
[314387455,1708255835229,-500.0,0.00027397,2]
[314387456,1708255835239,-453.56576651,0.00027397,2]
[314387457,1708255835248,-549.14,0.00027397,2]
[314387458,1708255835258,-500.0,0.00027397,2]
[314387459,1708255835267,-500.0,0.00027397,2]
[314387460,1708255835277,-500.0,0.00027397,2]
[314387461,1708255835286,-500.0,0.00027397,2]
[314387462,1708255835296,-500.0,0.00027397,2]
[314387463,1708255835305,-541.63466175,0.00027397,2]
[314387464,1708255835314,-500.0,0.00027397,2]
[314387465,1708255835323,-514.11237277,0.00027397,2]
[314387466,1708255835333,-500.0,0.00027397,2]
[314387467,1708255835342,-500.0,0.00027397,2]
[314387468,1708255835351,-500.0,0.00027397,2]
[314387469,1708255835361,-315.796952,0.00027397,2]
[314387470,1708255835371,-500.0,0.00027397,2]
[314387471,1708255835381,-500.0,0.00027397,2]
[314387472,1708255835390,-500.0,0.00027397,2]
[314387473,1708255835399,-500.0,0.00027397,2]
[314387474,1708255835408,-500.0,0.00027397,2]
[314387475,1708255835419,-500.0,0.00027397,2]
[314387476,1708255835430,-500.0,0.00027397,2]
[314387477,1708255835439,-500.0,0.00027397,2]
[314387478,1708255835449,-500.0,0.00027397,2]
[314387479,1708255835458,-500.0,0.00027397,2]
[314387480,1708255835468,-669.21,0.00027397,2]
[314387481,1708255835477,-534.99074956,0.00027397,2]
[314387482,1708255835486,-500.0,0.00027397,2]
[314387483,1708255835496,-500.0,0.00027397,2]
[314387484,1708255835506,-249.34461434,0.00027397,2]
[314387485,1708255835515,-500.0,0.00027397,2]
[314387486,1708255835524,-500.0,0.00027397,2]
[314387487,1708255835533,-500.0,0.00027397,2]
[314387488,1708255835543,-500.0,0.00027397,2]
[314387489,1708255835553,-164.95275366,0.00027397,2]
[314387490,1708255835562,-500.0,0.00027397,2]
[314387491,1708255835571,-500.0,0.00027397,2]
[314387492,1708255835581,-500.00000001,0.00027397,2]
[314387493,1708255835590,-500.0,0.00027397,2]
[314387494,1708255835600,-500.0,0.00027397,2]
[314387495,1708255835609,-508.63955029,0.00027397,2]
[314387496,1708255835619,-500.0,0.00027397,2]
[314387497,1708255835628,-500.0,0.00027397,2]
[314387498,1708255835638,-500.0,0.00027397,2]
[314387499,1708255835647,-500.0,0.00027397,2]
[314387500,1708255835656,-500.0,0.00027397,2]
[314387501,1708255835666,-500.0,0.00027397,2]
[314387502,1708255835675,-500.0,0.00027397,2]
[314387503,1708255835684,-502.69462931,0.00027397,2]
[314387504,1708255835694,-500.0,0.00027397,2]
[314387505,1708255835703,-500.0,0.00027397,2]
[314387506,1708255835713,-551.44609297,0.00027397,2]
[314387507,1708255835721,-675.43,0.00027397,2]
[314387508,1708255835730,-500.0,0.00027397,2]
[314387509,1708255835740,-639.13,0.00027397,2]
[314387510,1708255835749,-500.0,0.00027397,2]
[314387511,1708255835759,-500.0,0.00027397,2]
[314387512,1708255835768,-500.0,0.00027397,2]
[314387513,1708255835778,-500.0,0.00027397,2]
[314387514,1708255835788,-503.59517549,0.00027397,2]
[314387515,1708255835798,-500.0,0.00027397,2]
[314387516,1708255835808,-500.0,0.00027397,2]
[314387517,1708255835818,-500.0,0.00027397,2]
[314387518,1708255835828,-500.0,0.00027397,2]
[314387519,1708255835838,-500.0,0.00027397,2]
[314387520,1708255835848,-500.0,0.00027397,2]
[314387521,1708255835859,-452.49903901,0.00027397,2]
[314387522,1708255835869,-500.0,0.00027397,2]
[314387523,1708255835878,-502.47326589,0.00027397,2]
[314387524,1708255835888,-531.54,0.00027397,2]
[314387525,1708255835897,-500.0,0.00027397,2]
[314387526,1708255835906,-572.04988646,0.00027397,2]
[314387527,1708255835916,-558.79,0.00027397,2]
[314387528,1708255835925,-500.0,0.00027397,2]
[314387529,1708255835935,-500.0,0.00027397,2]
[314387530,1708255835945,-500.0,0.00027397,2]
[314387531,1708255835955,-500.0,0.00027397,2]
[314387532,1708255835965,-645.22526857,0.00027397,2]
[314387533,1708255835974,-500.0,0.00027397,2]
[314387534,1708255835984,-500.0,0.00027397,2]
[314387535,1708255835993,-4106.83,0.00027397,2]
[314387536,1708255836113,-718.0,0.00027397,2]
[314387537,1708255836124,-500.0,0.00027397,2]
[314387538,1708255836133,-500.0,0.00027397,2]
[314387539,1708255836143,-4862.58,0.00027397,2]
[314387540,1708255836152,-500.0,0.00027397,2]
[314387541,1708255836162,-500.0,0.00027397,2]
[314387542,1708255836171,-500.0,0.00027397,2]
[314387543,1708255836181,-346.27020784,0.00027397,2]
[314387544,1708255836191,-338.16276066,0.00027397,2]
[314387545,1708255836200,-3739.51,0.00027397,2]
[314387546,1708255836210,-500.0,0.00027397,2]
[314387547,1708255836219,-721.27,0.00027397,2]
[314387548,1708255836228,-545.86584423,0.00027397,2]
[314387549,1708255836238,-283.64291056,0.00027397,2]
[314387550,1708255836248,-360.53772676,0.00027397,2]
[314387551,1708255836258,-2464.71,0.00027397,2]
[314387552,1708255836267,-2464.71,0.00027397,2]
[314387553,1708255836277,-2464.71,0.00027397,2]
[314387554,1708255836287,-500.0,0.00027397,2]
[314387555,1708255836296,-2464.71,0.00027397,2]
[314387556,1708255836306,-2464.71,0.00027397,2]
[314387557,1708255836316,-2464.71,0.00027397,2]
[314387558,1708255836326,-2464.71,0.00027397,2]
[314387559,1708255836336,-2464.71,0.00027397,2]
[314387560,1708255836345,-2464.71,0.00027397,2]
[314387561,1708255836355,-2464.71,0.00027397,2]
[314387562,1708255836364,-2464.71,0.00027397,2]
[314387563,1708255836374,-2464.71,0.00027397,2]
[314387564,1708255836384,-2464.71,0.00027397,2]
[314387565,1708255836393,-2464.71,0.00027397,2]
[314387566,1708255836403,-2464.71,0.00027397,2]
[314387567,1708255836412,-2464.71,0.00027397,2]
[314387568,1708255836422,-500.0,0.00027397,2]
[314387569,1708255836432,-500.0,0.00027397,2]
[314387570,1708255836441,-173.99098912,0.00027397,2]
[314387571,1708255836451,-500.0,0.00027397,2]
[314387572,1708255836462,-541.14,0.00027397,2]
[314387573,1708255836472,-505.28274655,0.00027397,2]
[314387574,1708255836481,-500.0,0.00027397,2]
[314387575,1708255836491,-500.0,0.00027397,2]
[314387576,1708255836501,-506.64620486,0.00027397,2]
[314387577,1708255836511,-1180.53,0.00027397,2]
[314387578,1708255836521,-513.01191782,0.00027397,2]
[314387579,1708255836530,-500.0,0.00027397,2]
[314387580,1708255836539,-394.90630849,0.00027397,2]
[314387581,1708255836548,-500.0,0.00027397,2]
[314387582,1708255836558,-1075.15,0.00027397,2]
[314387583,1708255836568,-500.0,0.00027397,2]
[314387584,1708255836576,-500.0,0.00027397,2]
[314387585,1708255836586,-500.0,0.00027397,2]
[314387586,1708255836595,-502.4620901,0.00027397,2]
[314387587,1708255836604,-5596.82,0.00027397,2]
[314387588,1708255836613,-500.0,0.00027397,2]
[314387589,1708255836622,-500.0,0.00027397,2]
[314387590,1708255836632,-2268.44,0.00027397,2]
[314387591,1708255836641,-454.07093695,0.00027397,2]
[314387592,1708255836650,-500.0,0.00027397,2]
[314387593,1708255836660,-764.24,0.00027397,2]
[314387594,1708255836670,-200.81707527,0.00027397,2]
[314387595,1708255836682,-500.0,0.00027397,2]
[314387596,1708255836691,-2989.45,0.00027397,2]
[314387597,1708255836700,-500.0,0.00027397,2]
[314387598,1708255836710,-500.0,0.00027397,2]
[314387599,1708255836720,-5281.21,0.00027397,2]
[314387600,1708255836730,-506.56484932,0.00027397,2]
[314387601,1708255836740,-500.0,0.00027397,2]
[314387602,1708255836749,-903.25,0.00027397,2]
[314387603,1708255836758,-432.77587984,0.00027397,2]
[314387604,1708255836767,-390.0,0.00027397,2]
[314387605,1708255836776,-500.0,0.00027397,2]
[314387606,1708255836786,-500.0,0.00027397,2]
[314387607,1708255836795,-569.32,0.00027397,2]
[314387608,1708255836806,-500.0,0.00027397,2]
[314387609,1708255836815,-500.0,0.00027397,2]
[314387610,1708255836824,-500.0,0.00027397,2]
[314387611,1708255836833,-500.0,0.00027397,2]
[314387612,1708255836843,-500.0,0.00027397,2]
[314387613,1708255836852,-500.0,0.00027397,2]
[314387614,1708255836861,-501.66356561,0.00027397,2]
[314387615,1708255836871,-500.0,0.00027397,2]
[314387616,1708255836880,-401.41173054,0.00027397,2]
[314387617,1708255836889,-300.0,0.00027442,2]
[314387618,1708255836899,-166.666666,0.00027542,2]
[314387619,1708255836908,-2464.71,0.0002767,2]
[314387620,1708255836917,-635.03434211,0.0002767,2]
[314387621,1708255836926,-500.0,0.00027671,2]
[314387622,1708255836935,-502.44293969,0.00027671,2]
[314387623,1708255836945,-500.0,0.00027671,2]
[314387624,1708255836954,-500.0,0.00027671,2]
[314387625,1708255836964,-500.0,0.00027671,2]
[314387626,1708255836973,-512.07907638,0.00027671,2]
[314387627,1708255836982,-500.0,0.00027671,2]
[314387628,1708255836993,-500.0,0.00027671,2]
[314387629,1708255837002,-500.0,0.00027671,2]
[314387630,1708255837011,-500.0,0.00027671,2]
[314387631,1708255837020,-500.0,0.00027671,2]
[314387632,1708255837029,-500.0,0.00027671,2]
[314387633,1708255837039,-500.0,0.00027671,2]
[314387634,1708255837048,-500.0,0.00027671,2]
[314387635,1708255837057,-500.0,0.00027671,2]
[314387636,1708255837066,-535.88417001,0.00027671,2]
[314387637,1708255837075,-500.0,0.00027671,2]
[314387638,1708255837085,-500.0,0.00027671,2]
[314387639,1708255837095,-150.01252592,0.00027671,2]
[314387640,1708255837104,-548.30171102,0.00027671,2]
[314387641,1708255837113,-500.0,0.00027671,2]
[314387642,1708255837122,-500.0,0.00027671,2]
[314387643,1708255837132,-500.0,0.00027671,2]
[314387644,1708255837141,-549.14,0.00027671,2]
[314387645,1708255837150,-512.27916742,0.00027671,2]
[314387646,1708255837160,-528.25553377,0.00027671,2]
[314387647,1708255837169,-500.0,0.00027671,2]
[314387648,1708255837178,-500.0,0.00027671,2]
[314387649,1708255837188,-500.0,0.00027671,2]
[314387650,1708255837197,-500.0,0.00027671,2]
[314387651,1708255837206,-500.0,0.00027671,2]
[314387652,1708255837216,-500.0,0.00027671,2]
[314387653,1708255837225,-500.0,0.00027671,2]
[314387654,1708255837234,-500.0,0.00027671,2]
[314387655,1708255837243,-500.0,0.00027671,2]
[314387656,1708255837253,-500.0,0.00027671,2]
[314387657,1708255837262,-500.0,0.00027671,2]
[314387658,1708255837271,-669.21,0.00027671,2]
[314387659,1708255837281,-500.0,0.00027671,2]
[314387660,1708255837290,-238.99602036,0.00027671,2]
[314387661,1708255837299,-500.0,0.00027671,2]
[314387662,1708255837309,-500.0,0.00027671,2]
[314387663,1708255837318,-500.0,0.00027671,2]
[314387664,1708255837327,-500.0,0.00027671,2]
[314387665,1708255837336,-500.0,0.00027671,2]
[314387666,1708255837345,-500.0,0.00027671,2]
[314387667,1708255837354,-500.0,0.00027671,2]
[314387668,1708255837364,-500.0,0.00027671,2]
[314387669,1708255837373,-500.0,0.00027671,2]
[314387670,1708255837382,-500.0,0.00027671,2]
[314387671,1708255837392,-500.0,0.00027671,2]
[314387672,1708255837401,-500.0,0.00027671,2]
[314387673,1708255837410,-388.7769542,0.00027671,2]
[314387674,1708255837421,-500.0,0.00027671,2]
[314387675,1708255837433,-151.0,0.00027671,2]
[314387676,1708255837442,-500.0,0.00027671,2]
[314387677,1708255837451,-500.0,0.00027671,2]
[314387678,1708255837462,-500.0,0.00027671,2]
[314387679,1708255837471,-675.43,0.00027671,2]
[314387680,1708255837480,-639.13,0.00027671,2]
[314387681,1708255837489,-270.72050512,0.00027671,2]
[314387682,1708255837498,-500.0,0.00027671,2]
[314387683,1708255837509,-616.22470133,0.00027671,2]
[314387684,1708255837521,-500.0,0.00027671,2]
[314387685,1708255837597,-500.0,0.00027671,2]
[314387686,1708255837608,-500.0,0.00027671,2]
[314387687,1708255837617,-500.0,0.00027671,2]
[314387688,1708255837627,-500.0,0.00027671,2]
[314387689,1708255837637,-500.0,0.00027671,2]
[314387690,1708255837648,-531.54,0.00027671,2]
[314387691,1708255837659,-558.79,0.00027671,2]
[314387692,1708255837669,-500.0,0.00027671,2]
[314387693,1708255837680,-500.0,0.00027671,2]
[314387694,1708255837692,-504.57521768,0.00027671,2]
[314387695,1708255837704,-4106.83,0.00027671,2]
[314387696,1708255837715,-718.0,0.00027671,2]
[314387697,1708255837726,-504.2872166,0.00027671,2]
[314387698,1708255837737,-4862.58,0.00027671,2]
[314387699,1708255837747,-511.85670083,0.00027671,2]
[314387700,1708255837759,-500.0,0.00027671,2]
[314387701,1708255837769,-3739.51,0.00027671,2]
[314387702,1708255837780,-500.0,0.00027671,2]
[314387703,1708255837793,-721.27,0.00027671,2]
[314387704,1708255837805,-240.52991629,0.00027671,2]
[314387705,1708255837815,-211.8235657,0.00027671,2]
[314387706,1708255837827,-500.0,0.00027671,2]
[314387707,1708255837838,-1102.963576,0.00027671,2]
[314387708,1708255837849,-1102.963576,0.00027671,2]
[314387709,1708255837861,-500.0,0.00027671,2]
[314387710,1708255837872,-541.14,0.00027671,2]
[314387711,1708255837883,-500.0,0.00027671,2]
[314387712,1708255837894,-535.37576033,0.00027671,2]
[314387713,1708255837904,-1180.53,0.00027671,2]
[314387714,1708255837914,-272.28977375,0.00027671,2]
[314387715,1708255837924,-500.0,0.00027671,2]
[314387716,1708255837933,-1075.15,0.00027671,2]
[314387717,1708255837942,-1211.858725,0.00027671,2]
[314387718,1708255837951,-500.0,0.00027671,2]
[314387719,1708255837961,-500.0,0.00027671,2]
[314387720,1708255837970,-1211.858725,0.00027671,2]
[314387721,1708255837980,-5596.82,0.00027671,2]
[314387722,1708255837988,-500.0,0.00027671,2]
[314387723,1708255837998,-2268.44,0.00027671,2]
[314387724,1708255838007,-764.24,0.00027671,2]
[314387725,1708255838016,-500.0,0.00027671,2]
[314387726,1708255838025,-2989.45,0.00027671,2]
[314387727,1708255838035,-500.0,0.00027671,2]
[314387728,1708255838045,-5281.21,0.00027671,2]
[314387729,1708255838054,-500.0,0.00027671,2]
[314387730,1708255838063,-903.25,0.00027671,2]
[314387731,1708255838072,-390.0,0.00027671,2]
[314387733,1708255838082,-500.0,0.00027671,2]
[314387734,1708255838091,-500.0,0.00027671,2]
[314387735,1708255838100,-500.0,0.00027671,2]
[314387736,1708255838110,-500.0,0.00027671,2]
[314387737,1708255838119,-500.0,0.00027671,2]
[314387738,1708255838128,-2464.71,0.00027783,2]
[314387739,1708255838137,-4627.19266108,0.00027784,2]
[314387740,1708255838146,-533.83188038,0.00027784,2]
[314387741,1708255838155,-2464.71,0.00027944,2]
[314387742,1708255838164,-500.07979163,0.00027945,2]
[314387744,1708255838173,-500.0,0.00027945,2]
[314387746,1708255838183,-500.0,0.00027945,2]
[314387748,1708255838192,-500.0,0.00027945,2]
[314387749,1708255838201,-501.74300221,0.00027945,2]
[314387750,1708255838210,-500.0,0.00027945,2]
[314387751,1708255838219,-500.0,0.00027945,2]
[314387752,1708255838228,-500.0,0.00027945,2]
[314387753,1708255838237,-500.0,0.00027945,2]
[314387754,1708255838246,-500.0,0.00027945,2]
[314387755,1708255838256,-500.0,0.00027945,2]
[314387756,1708255838265,-500.0,0.00027945,2]
[314387757,1708255838274,-500.0,0.00027945,2]
[314387758,1708255838282,-549.14,0.00027945,2]
[314387759,1708255838297,-500.0,0.00027945,2]
[314387760,1708255838313,-500.0,0.00027945,2]
[314387763,1708255838329,-500.0,0.00027945,2]
[314387765,1708255838340,-500.0,0.00027945,2]
[314387767,1708255838355,-553.38697789,0.00027945,2]
[314387770,1708255838369,-500.0,0.00027945,2]
[314387773,1708255838384,-500.0,0.00027945,2]
[314387775,1708255838398,-500.0,0.00027945,2]
[314387777,1708255838410,-500.0,0.00027945,2]
[314387780,1708255838423,-669.21,0.00027945,2]
[314387782,1708255838439,-500.0,0.00027945,2]
[314387785,1708255838452,-505.77159695,0.00027945,2]
[314387787,1708255838467,-500.0,0.00027945,2]
[314387790,1708255838480,-500.0,0.00027945,2]
[314387792,1708255838492,-500.0,0.00027945,2]
[314387794,1708255838503,-500.0,0.00027945,2]
[314387797,1708255838518,-500.0,0.00027945,2]
[314387799,1708255838533,-500.0,0.00027945,2]
[314387801,1708255838546,-500.0,0.00027945,2]
[314387803,1708255838558,-500.0,0.00027945,2]
[314387806,1708255838570,-500.0,0.00027945,2]
[314387808,1708255838584,-237.811679,0.00027945,2]
[314387811,1708255838599,-237.811679,0.00027945,2]
[314387814,1708255838614,-500.0,0.00027945,2]
[314387816,1708255838628,-500.0,0.00027945,2]
[314387818,1708255838639,-500.0,0.00027945,2]
[314387820,1708255838649,-564.59138388,0.00027945,2]
[314387823,1708255838660,-675.43,0.00027945,2]
[314387825,1708255838674,-639.13,0.00027945,2]
[314387827,1708255838685,-308.61183286,0.00027945,2]
[314387830,1708255838699,-500.0,0.00027945,2]
[314387832,1708255838710,-500.0,0.00027945,2]
[314387834,1708255838721,-500.0,0.00027945,2]
[314387836,1708255838732,-500.0,0.00027945,2]
[314387839,1708255838743,-500.0,0.00027945,2]
[314387841,1708255838754,-531.54,0.00027945,2]
[314387843,1708255838766,-558.79,0.00027945,2]
[314387845,1708255838777,-500.0,0.00027945,2]
[314387848,1708255838790,-220.328976,0.00027945,2]
[314387850,1708255838801,-500.0,0.00027945,2]
[314387852,1708255838813,-151.0,0.00027945,2]
[314387854,1708255838824,-151.0,0.00027945,2]
[314387857,1708255838835,-4106.83,0.00027945,2]
[314387859,1708255838847,-718.0,0.00027945,2]
[314387861,1708255838858,-4862.58,0.00027945,2]
[314387863,1708255838869,-500.0,0.00027945,2]
[314387865,1708255838880,-3739.51,0.00027945,2]
[314387868,1708255838892,-500.0,0.00027945,2]
[314387870,1708255838904,-721.27,0.00027945,2]
[314387872,1708255838915,-500.0,0.00027945,2]
[314387874,1708255838927,-500.0,0.00027945,2]
[314387877,1708255838939,-541.14,0.00027945,2]
[314387879,1708255838951,-343.92578836,0.00027945,2]
[314387881,1708255838963,-1180.53,0.00027945,2]
[314387883,1708255838974,-500.0,0.00027945,2]
[314387884,1708255838985,-1075.15,0.00027945,2]
[314387885,1708255838996,-500.0,0.00027945,2]
[314387886,1708255839008,-5596.82,0.00027945,2]
[314387887,1708255839020,-500.0,0.00027945,2]
[314387888,1708255839032,-2268.44,0.00027945,2]
[314387889,1708255839044,-764.24,0.00027945,2]
[314387890,1708255839055,-500.0,0.00027945,2]
[314387891,1708255839067,-2989.45,0.00027945,2]
[314387892,1708255839080,-500.0,0.00027945,2]
[314387893,1708255839091,-5281.21,0.00027945,2]
[314387894,1708255839103,-500.0,0.00027945,2]
[314387895,1708255839116,-903.25,0.00027945,2]
[314387903,1708255839215,-500.0,0.00027945,2]
[314387906,1708255839231,-500.0,0.00027945,2]
[314387908,1708255839241,-500.0,0.00027945,2]
[314387909,1708255839253,-500.0,0.00027945,2]
[314387911,1708255839265,-500.0,0.00027945,2]
[314387913,1708255839276,-300.0,0.00027947,2]
[314387915,1708255839287,-155.0,0.00028,2]
[314387917,1708255839298,-155.0,0.00028,2]
[314387919,1708255839310,-1000.0,0.00028,28]
[314387921,1708255839320,-620.10757407,0.00028064,2]
[314387924,1708255839331,-2464.71,0.00028218,2]
[314387925,1708255839342,-2464.71,0.00028218,2]
[314387927,1708255839352,-2464.71,0.00028218,2]
[314387929,1708255839363,-2464.71,0.00028218,2]
[314387932,1708255839374,-2464.9,0.00028218,2]
[314387933,1708255839385,-574.43456327,0.00028219,2]
[314387936,1708255839396,-500.0,0.00028219,2]
[314387938,1708255839406,-169.63304512,0.00028219,2]
[314387939,1708255839417,-318.7266784,0.00028219,2]
[314387941,1708255839427,-500.0,0.00028219,2]
[314387943,1708255839438,-500.0,0.00028219,2]
[314387945,1708255839449,-549.14,0.00028219,2]
[314387947,1708255839459,-500.0,0.00028219,2]
[314387949,1708255839470,-500.0,0.00028219,2]
[314387951,1708255839481,-500.0,0.00028219,2]
[314387953,1708255839491,-253.87529067,0.00028219,2]
[314387955,1708255839501,-500.0,0.00028219,2]
[314387957,1708255839513,-500.0,0.00028219,2]
[314387959,1708255839524,-669.21,0.00028219,2]
[314387961,1708255839533,-151.0,0.00028219,2]
[314387963,1708255839543,-500.0,0.00028219,2]
[314387965,1708255839555,-500.0,0.00028219,2]
[314387967,1708255839565,-500.0,0.00028219,2]
[314387969,1708255839575,-500.0,0.00028219,2]
[314387971,1708255839586,-500.0,0.00028219,2]
[314387973,1708255839596,-151.0,0.00028219,2]
[314387975,1708255839606,-675.43,0.00028219,2]
[314387977,1708255839615,-639.13,0.00028219,2]
[314387979,1708255839626,-500.0,0.00028219,2]
[314387981,1708255839636,-500.0,0.00028219,2]
[314387983,1708255839646,-500.0,0.00028219,2]
[314387985,1708255839655,-500.0,0.00028219,2]
[314387987,1708255839664,-531.54,0.00028219,2]
[314387989,1708255839674,-558.79,0.00028219,2]
[314387991,1708255839683,-500.0,0.00028219,2]
[314387993,1708255839692,-500.0,0.00028219,2]
[314387995,1708255839701,-4106.83,0.00028219,2]
[314387997,1708255839711,-718.0,0.00028219,2]
[314387999,1708255839720,-4862.58,0.00028219,2]
[314388001,1708255839729,-3739.51,0.00028219,2]
[314388003,1708255839739,-721.27,0.00028219,2]
[314388005,1708255839748,-1102.963576,0.00028219,2]
[314388007,1708255839757,-500.0,0.00028219,2]
[314388009,1708255839767,-1102.963576,0.00028219,2]
[314388011,1708255839776,-500.0,0.00028219,2]
[314388013,1708255839786,-541.14,0.00028219,2]
[314388015,1708255839796,-1180.53,0.00028219,2]
[314388017,1708255839807,-1075.15,0.00028219,2]
[314388019,1708255839817,-1211.858725,0.00028219,2]
[314388021,1708255839827,-500.0,0.00028219,2]
[314388023,1708255839837,-1211.858725,0.00028219,2]
[314388025,1708255839847,-5596.82,0.00028219,2]
[314388027,1708255839856,-2268.44,0.00028219,2]
[314388029,1708255839866,-764.24,0.00028219,2]
[314388031,1708255839875,-2989.45,0.00028219,2]
[314388033,1708255839883,-5281.21,0.00028219,2]
[314388035,1708255839893,-427.84750816,0.00028219,2]
[314388036,1708255839902,-903.25,0.00028219,2]
[314388038,1708255839912,-500.0,0.00028219,2]
[314388039,1708255839921,-500.0,0.00028219,2]
[314388040,1708255839930,-500.0,0.00028219,2]
[314388041,1708255839940,-500.0,0.00028219,2]
[314388042,1708255839949,-620.10256323,0.0002825,2]
[314388043,1708255839959,-300.0,0.00028451,2]
[314388044,1708255839968,-285.34624526,0.00028492,2]
[314388045,1708255839978,-500.0,0.00028492,2]
[314388046,1708255839987,-500.0,0.00028492,2]
[314388047,1708255839996,-500.0,0.00028492,2]
[314388049,1708255840005,-613.54943699,0.00028492,2]
[314388050,1708255840014,-500.0,0.00028492,2]
[314388052,1708255840024,-500.0,0.00028492,2]
[314388054,1708255840033,-500.0,0.00028492,2]
[314388055,1708255840042,-500.0,0.00028492,2]
[314388056,1708255840053,-500.0,0.00028492,2]
[314388057,1708255840062,-208.5588087,0.00028492,2]
[314388058,1708255840071,-500.0,0.00028492,2]
[314388059,1708255840081,-500.0,0.00028492,2]
[314388060,1708255840090,-500.0,0.00028492,2]
[314388061,1708255840100,-500.0,0.00028492,2]
[314388062,1708255840110,-286.36451332,0.00028492,2]
[314388063,1708255840119,-500.0,0.00028493,2]
[314388064,1708255840128,-257.44872968,0.00028493,2]
[314388065,1708255840138,-500.0,0.00028493,2]
[314388066,1708255840146,-151.0,0.00028493,2]
[314388067,1708255840156,-151.0,0.00028493,2]
[314388068,1708255840165,-151.0,0.00028493,2]
[314388069,1708255840175,-151.0,0.00028493,2]
[314388070,1708255840184,-549.14,0.00028493,2]
[314388071,1708255840194,-500.0,0.00028493,2]
[314388072,1708255840204,-500.0,0.00028493,2]
[314388073,1708255840213,-669.21,0.00028493,2]
[314388074,1708255840222,-500.0,0.00028493,2]
[314388075,1708255840231,-500.0,0.00028493,2]
[314388076,1708255840243,-500.0,0.00028493,2]
[314388077,1708255840252,-500.0,0.00028493,2]
[314388078,1708255840261,-675.43,0.00028493,2]
[314388079,1708255840270,-639.13,0.00028493,2]